[Event "*** MasterClass Titled Tuesday Blitz"]
[Site "Chess.com"]
[Date "2017.11.07"]
[Round "2"]
[White "hermionegrangermagic"]
[Black "LonesomeGeorge1"]
[Result "0-1"]
[WhiteElo "2367"]
[BlackElo "2277"]
[TimeControl "180+2"]
[EndTime "14:34:44 PST"]
[Termination "LonesomeGeorge1 won by resignation"]

1. e4 {[%clk 0:03:01.9]} 1... e5 {[%clk 0:03:00.4]} 2. Nf3 {[%clk 0:03:02.6]}
2... Nc6 {[%clk 0:03:01.6]} 3. Bb5 {[%clk 0:03:03.7]} 3... g6 {[%clk 0:03:02.2]}
4. O-O {[%clk 0:03:04.1]} 4... Bg7 {[%clk 0:03:03.4]} 5. c3 {[%clk 0:03:05.4]}
5... a6 {[%clk 0:03:03.8]} 6. Ba4 {[%clk 0:03:04.4]} 6... d6 {[%clk 0:03:05.1]}
7. d4 {[%clk 0:03:05.6]} 7... Bd7 {[%clk 0:03:06.7]} 8. Be3 {[%clk 0:03:04.6]}
8... Nf6 {[%clk 0:03:06.4]} 9. Nbd2 {[%clk 0:03:03.5]} 9... O-O {[%clk 0:03:07]}
10. h3 {[%clk 0:03:02.8]} 10... Re8 {[%clk 0:03:07.6]} 11. Bc2 {[%clk
0:03:01.6]} 11... Qe7 {[%clk 0:03:04.2]} 12. a3 {[%clk 0:02:59.6]} 12... Qf8
{[%clk 0:03:05]} 13. Re1 {[%clk 0:02:59.9]} 13... Rad8 {[%clk 0:03:05.5]} 14.
Rc1 {[%clk 0:03:00.3]} 14... Bc8 {[%clk 0:03:06]} 15. d5 {[%clk 0:02:58.7]}
15... Ne7 {[%clk 0:03:05.7]} 16. c4 {[%clk 0:02:59.4]} 16... Nh5 {[%clk
0:03:02.3]} 17. c5 {[%clk 0:03:00.2]} 17... f5 {[%clk 0:02:55.6]} 18. Bg5 {[%clk
0:02:59.7]} 18... h6 {[%clk 0:02:50.8]} 19. Bxe7 {[%clk 0:02:54.3]} 19... Rxe7
{[%clk 0:02:45.3]} 20. exf5 {[%clk 0:02:55.3]} 20... Nf4 {[%clk 0:02:42.3]} 21.
fxg6 {[%clk 0:02:49.7]} 21... dxc5 {[%clk 0:02:27.6]} 22. Ne4 {[%clk 0:02:49.5]}
22... Kh8 {[%clk 0:02:23.7]} 23. Nxc5 {[%clk 0:02:49.6]} 23... Rxd5 {[%clk
0:02:23.2]} 24. Bd3 {[%clk 0:02:39.4]} 24... b6 {[%clk 0:02:18.7]} 25. Qb3
{[%clk 0:02:25.6]} 25... Rxc5 {[%clk 0:02:10.6]} 26. Rxc5 {[%clk 0:02:20.5]}
26... bxc5 {[%clk 0:02:12.5]} 27. Be4 {[%clk 0:02:19.4]} 27... Be6 {[%clk
0:02:03.9]} 28. Qc3 {[%clk 0:02:17.3]} 28... c4 {[%clk 0:02:02.9]} 29. Nd2
{[%clk 0:02:05.5]} 29... Rd7 {[%clk 0:02:01]} 30. Nxc4 {[%clk 0:02:04.1]} 30...
Qc5 {[%clk 0:02:01.1]} 31. Ne3 {[%clk 0:01:57.7]} 31... Qxc3 {[%clk 0:01:53.3]}
32. bxc3 {[%clk 0:01:58.8]} 32... Rd2 {[%clk 0:01:52]} 33. Rb1 {[%clk
0:01:52.9]} 33... Ne2+ {[%clk 0:01:43.1]} 34. Kf1 {[%clk 0:01:28.8]} 34... Bf6
{[%clk 0:01:38.7]} 35. Bf5 {[%clk 0:01:05.4]} 35... Bg8 {[%clk 0:01:21]} 36. Ng4
{[%clk 0:01:00.1]} 36... Bg5 {[%clk 0:01:15.5]} 37. Rb8 {[%clk 0:00:44.7]} 37...
Nxc3 {[%clk 0:01:10.9]} 38. g3 {[%clk 0:00:33.1]} 38... Kg7 {[%clk 0:01:10]} 39.
h4 {[%clk 0:00:33.8]} 39... Bd5 {[%clk 0:00:53]} 40. f4 {[%clk 0:00:22.5]} 40...
Be7 {[%clk 0:00:30]} 41. Nxe5 {[%clk 0:00:19.1]} 41... Bc5 {[%clk 0:00:26.6]}
42. Bg4 {[%clk 0:00:13]} 42... Rh2 {[%clk 0:00:17.7]} 43. Bf3 {[%clk 0:00:11.2]}
43... Bxf3 {[%clk 0:00:15.1]} 44. Nxf3 {[%clk 0:00:12.2]} 44... Rf2+ {[%clk
0:00:17]} 45. Ke1 {[%clk 0:00:12.6]} 45... Rxf3 {[%clk 0:00:18.9]} 46. h5 {[%clk
0:00:12.6]} 46... Rxg3 {[%clk 0:00:18.2]} 47. Rd8 {[%clk 0:00:13.3]} 47... Bd6
{[%clk 0:00:17.6]} 48. Rd7+ {[%clk 0:00:14]} 48... Kf6 {[%clk 0:00:19.1]} 49.
Rf7+ {[%clk 0:00:14.6]} 49... Ke6 {[%clk 0:00:19.7]} 50. f5+ {[%clk 0:00:16.5]}
50... Ke5 {[%clk 0:00:19.9]} 51. f6 {[%clk 0:00:17.6]} 51... Nd5 {[%clk
0:00:21.1]} 52. Rh7 {[%clk 0:00:12.6]} 52... Nxf6 {[%clk 0:00:21]} 53. Rxh6
{[%clk 0:00:13.9]} 53... Nxh5 {[%clk 0:00:22.4]} 54. Rxh5+ {[%clk 0:00:15]}
54... Kf6 {[%clk 0:00:21.7]} 55. Ra5 {[%clk 0:00:14.7]} 55... Rxa3 {[%clk
0:00:23.1]} 56. Rh5 {[%clk 0:00:14.8]} 56... Kxg6 {[%clk 0:00:23.7]} 57. Rh4
{[%clk 0:00:16]} 57... Kf6 {[%clk 0:00:24.7]} 58. Kd1 {[%clk 0:00:17.3]} 58...
Ke6 {[%clk 0:00:26]} 59. Kc2 {[%clk 0:00:18.7]} 59... Kd7 {[%clk 0:00:27.2]} 60.
Rh7+ {[%clk 0:00:20.2]} 60... Kc6 {[%clk 0:00:28.2]} 61. Rh4 {[%clk 0:00:22.1]}
61... Ra5 {[%clk 0:00:27.8]} 62. Rh8 {[%clk 0:00:22.8]} 62... Rc5+ {[%clk
0:00:29.2]} 63. Kb3 {[%clk 0:00:23.5]} 63... a5 {[%clk 0:00:31.1]} 64. Ka4
{[%clk 0:00:24.6]} 64... Rg5 {[%clk 0:00:27.8]} 65. Rh6 {[%clk 0:00:24.9]} 65...
Kb7 {[%clk 0:00:27.7]} 66. Rh7 {[%clk 0:00:26]} 66... Bb4 {[%clk 0:00:27.3]} 67.
Rf7 {[%clk 0:00:26.2]} 67... Be1 {[%clk 0:00:26.7]} 68. Rh7 {[%clk 0:00:26.7]}
68... Rg4+ {[%clk 0:00:27.7]} 69. Kb5 {[%clk 0:00:26.4]} 69... Rb4+ {[%clk
0:00:28.6]} 70. Kc5 {[%clk 0:00:26.8]} 70... Bf2+ {[%clk 0:00:30.1]} 71. Kd5
{[%clk 0:00:27.1]} 71... a4 {[%clk 0:00:31.5]} 72. Rh2 {[%clk 0:00:27.2]} 72...
Bb6 {[%clk 0:00:31.2]} 73. Ra2 {[%clk 0:00:27.3]} 73... Ka6 {[%clk 0:00:32.2]}
74. Kc6 {[%clk 0:00:28]} 74... Ka5 {[%clk 0:00:33.3]} 75. Rg2 {[%clk 0:00:28.2]}
75... Rb3 {[%clk 0:00:33.5]} 76. Rg8 {[%clk 0:00:28.2]} 76... a3 {[%clk
0:00:33.9]} 77. Rg5+ {[%clk 0:00:27.4]} 77... Kb4 {[%clk 0:00:34.7]} 78. Rg4+
{[%clk 0:00:28.5]} 78... Kc3 {[%clk 0:00:36.1]} 79. Rg3+ {[%clk 0:00:29.6]}
79... Kb2 {[%clk 0:00:37.5]} 80. Rg2+ {[%clk 0:00:30.8]} 80... Ka1 {[%clk
0:00:37.5]} 81. Kd5 {[%clk 0:00:32.1]} 81... a2 {[%clk 0:00:38.5]} 82. Kc4
{[%clk 0:00:33.4]} 82... Rb1 {[%clk 0:00:34.6]} 83. Kc3 {[%clk 0:00:32.7]} 83...
Rh1 {[%clk 0:00:34.2]} 84. Kb3 {[%clk 0:00:31.9]} 84... Kb1 {[%clk 0:00:35.2]}
85. Rb2+ {[%clk 0:00:32]} 85... Kc1 {[%clk 0:00:33]} 86. Rc2+ {[%clk 0:00:30.3]}
86... Kd1 {[%clk 0:00:32.8]} 87. Rxa2 {[%clk 0:00:31.4]} 87... Rh3+ {[%clk
0:00:33.2]} 88. Kc4 {[%clk 0:00:32.5]} 88... Rh5 {[%clk 0:00:32.6]} 89. Kd3
{[%clk 0:00:32.4]} 89... Rd5+ {[%clk 0:00:33.1]} 90. Kc4 {[%clk 0:00:33.3]}
90... Rd4+ {[%clk 0:00:34.3]} 91. Kc3 {[%clk 0:00:34.6]} 91... Rd6 {[%clk
0:00:34.7]} 92. Kc4 {[%clk 0:00:35.7]} 92... Rd2 {[%clk 0:00:34.7]} 93. Ra1+
{[%clk 0:00:37]} 93... Ke2 {[%clk 0:00:35.8]} 94. Rh1 {[%clk 0:00:37.9]} 94...
Ke3 {[%clk 0:00:36.3]} 95. Re1+ {[%clk 0:00:38]} 95... Re2 {[%clk 0:00:36]} 96.
Rh1 {[%clk 0:00:38.7]} 96... Rc2+ {[%clk 0:00:34.7]} 97. Kb3 {[%clk 0:00:39.5]}
97... Rc5 {[%clk 0:00:35.4]} 98. Rh3+ {[%clk 0:00:39.8]} 98... Ke4 {[%clk
0:00:36.4]} 99. Rh4+ {[%clk 0:00:40.9]} 99... Kd5 {[%clk 0:00:37.8]} 100. Rh5+
{[%clk 0:00:42]} 100... Kc6 {[%clk 0:00:39.1]} 101. Rh6+ {[%clk 0:00:43.3]}
101... Kb5 {[%clk 0:00:40.4]} 102. Rh3 {[%clk 0:00:42.8]} 102... Re5 {[%clk
0:00:40.4]} 103. Kc2 {[%clk 0:00:42.7]} 103... c5 {[%clk 0:00:41.3]} 104. Rh8
{[%clk 0:00:42.7]} 104... Ba5 {[%clk 0:00:41.9]} 105. Rh4 {[%clk 0:00:41.7]}
105... Rd5 {[%clk 0:00:39.5]} 106. Kb3 {[%clk 0:00:40.9]} 106... Rd3+ {[%clk
0:00:39.4]} 107. Kc2 {[%clk 0:00:41.8]} 107... Rd4 {[%clk 0:00:40.9]} 108. Rh5
{[%clk 0:00:42.4]} 108... Kc4 {[%clk 0:00:42.2]} 109. Rh3 {[%clk 0:00:42.6]}
109... Rd2+ {[%clk 0:00:43.1]} 110. Kc1 {[%clk 0:00:43.4]} 110... Rg2 {[%clk
0:00:44]} 111. Rh4+ {[%clk 0:00:44.1]} 111... Kb3 {[%clk 0:00:44.2]} 112. Rh1
{[%clk 0:00:41.7]} 112... c4 {[%clk 0:00:44]} 113. Kb1 {[%clk 0:00:42.1]} 113...
Bb6 {[%clk 0:00:43.4]} 114. Rf1 {[%clk 0:00:39]} 114... Rg1 {[%clk 0:00:44.1]}
115. Rxg1 {[%clk 0:00:37.6]} 115... Bxg1 {[%clk 0:00:46]} 116. Ka1 {[%clk
0:00:38.9]} 116... Bd4+ {[%clk 0:00:46]} 117. Kb1 {[%clk 0:00:40.8]} 117... c3
{[%clk 0:00:44.3]} 118. Kc1 {[%clk 0:00:41.6]} 118... c2 {[%clk 0:00:45.3]} 119.
Kd2 {[%clk 0:00:42.8]} 119... Kb2 {[%clk 0:00:46.8]} 120. Kd3 {[%clk 0:00:43.8]}
120... c1=Q {[%clk 0:00:48.3]} 0-1

[Event "*** MasterClass Titled Tuesday Blitz"]
[Site "Chess.com"]
[Date "2017.11.07"]
[Round "2"]
[White "Saitama_Hero"]
[Black "Too_Stupid_To_Play"]
[Result "0-1"]
[WhiteElo "2160"]
[BlackElo "2205"]
[TimeControl "180+2"]
[EndTime "14:35:00 PST"]
[Termination "Too_Stupid_To_Play won by resignation"]

1. d4 {[%clk 0:03:01.9]} 1... Nf6 {[%clk 0:02:46.5]} 2. Bg5 {[%clk 0:03:02]}
2... d5 {[%clk 0:02:46.6]} 3. Bxf6 {[%clk 0:03:00.8]} 3... exf6 {[%clk
0:02:47.1]} 4. e3 {[%clk 0:03:02.7]} 4... Bd6 {[%clk 0:02:44.9]} 5. c4 {[%clk
0:03:04.3]} 5... c6 {[%clk 0:02:45.6]} 6. cxd5 {[%clk 0:03:01.8]} 6... cxd5
{[%clk 0:02:46.7]} 7. Nc3 {[%clk 0:03:03.7]} 7... Be6 {[%clk 0:02:39.6]} 8. Bd3
{[%clk 0:03:03.4]} 8... O-O {[%clk 0:02:39.9]} 9. Nge2 {[%clk 0:02:55.3]} 9...
g6 {[%clk 0:02:38.5]} 10. O-O {[%clk 0:02:53.3]} 10... a6 {[%clk 0:02:38.4]} 11.
e4 {[%clk 0:02:38.1]} 11... dxe4 {[%clk 0:02:31.7]} 12. Bxe4 {[%clk 0:02:40]}
12... Qd7 {[%clk 0:02:26.1]} 13. Na4 {[%clk 0:02:29.3]} 13... Ra7 {[%clk
0:02:14]} 14. d5 {[%clk 0:02:06.3]} 14... Bf5 {[%clk 0:02:07.5]} 15. Qd4 {[%clk
0:02:02.9]} 15... Bxe4 {[%clk 0:01:58.7]} 16. Nec3 {[%clk 0:01:34.4]} 16... b5
{[%clk 0:01:37.8]} 17. Nxe4 {[%clk 0:01:23.3]} 17... Be5 {[%clk 0:01:34.5]} 18.
Qxe5 {[%clk 0:01:18.2]} 18... fxe5 {[%clk 0:01:28]} 19. Nf6+ {[%clk 0:01:19.8]}
19... Kg7 {[%clk 0:01:29.8]} 20. Nxd7 {[%clk 0:01:21.7]} 20... Rxd7 {[%clk
0:01:27.3]} 21. Nc3 {[%clk 0:01:14.6]} 21... b4 {[%clk 0:01:27.3]} 22. Na4
{[%clk 0:01:13.6]} 22... Rxd5 {[%clk 0:01:27.5]} 23. Rfc1 {[%clk 0:01:11.8]}
23... Rfd8 {[%clk 0:01:23]} 24. Kf1 {[%clk 0:01:13.3]} 24... Rd2 {[%clk
0:01:23.3]} 25. b3 {[%clk 0:01:10.6]} 25... Nd7 {[%clk 0:01:18.5]} 26. Rc6
{[%clk 0:01:01.5]} 26... Nf6 {[%clk 0:01:17.1]} 27. Nc5 {[%clk 0:00:52.5]} 27...
Ng4 {[%clk 0:01:10.4]} 28. Ne4 {[%clk 0:00:43.8]} 28... Rb2 {[%clk 0:01:06]} 29.
h3 {[%clk 0:00:40.1]} 29... Nh6 {[%clk 0:00:59.6]} 30. Rxa6 {[%clk 0:00:36.1]}
30... f5 {[%clk 0:00:52.8]} 31. Ng5 {[%clk 0:00:29.9]} 31... Rdd2 {[%clk
0:00:50.8]} 32. Ra7+ {[%clk 0:00:27.2]} 32... Kf6 {[%clk 0:00:50.4]} 33. Nxh7+
{[%clk 0:00:27.2]} 33... Ke6 {[%clk 0:00:51.5]} 34. Ng5+ {[%clk 0:00:28.6]}
34... Kd5 {[%clk 0:00:48.8]} 35. Rd7+ {[%clk 0:00:19.9]} 35... Kc6 {[%clk
0:00:46.9]} 36. Rxd2 {[%clk 0:00:21.7]} 36... Rxd2 {[%clk 0:00:48.3]} 37. Nf3
{[%clk 0:00:23.2]} 37... Rd5 {[%clk 0:00:47.4]} 38. Rc1+ {[%clk 0:00:23.8]}
38... Kd6 {[%clk 0:00:48.2]} 39. Ke2 {[%clk 0:00:25.4]} 39... e4 {[%clk
0:00:49.4]} 40. Nd2 {[%clk 0:00:26.6]} 40... Nf7 {[%clk 0:00:48.4]} 41. Nc4+
{[%clk 0:00:28.5]} 41... Ke6 {[%clk 0:00:49.8]} 42. Rd1 {[%clk 0:00:29.5]} 42...
Rc5 {[%clk 0:00:47.8]} 43. Rd4 {[%clk 0:00:28.2]} 43... Rc6 {[%clk 0:00:40.6]}
44. Ne3 {[%clk 0:00:27.4]} 44... Ra6 {[%clk 0:00:40.7]} 45. Rd2 {[%clk
0:00:22.3]} 45... Ne5 {[%clk 0:00:42.1]} 46. Nc2 {[%clk 0:00:23.3]} 46... Nd3
{[%clk 0:00:41.7]} 47. f3 {[%clk 0:00:22.9]} 47... Ke5 {[%clk 0:00:39]} 48. Ne3
{[%clk 0:00:22.4]} 48... Rxa2 {[%clk 0:00:33.4]} 49. Nc4+ {[%clk 0:00:21.2]}
49... Kd4 {[%clk 0:00:32.9]} 50. Rxa2 {[%clk 0:00:19.5]} 50... Nc1+ {[%clk
0:00:34.1]} 51. Kd2 {[%clk 0:00:18.8]} 51... Nxa2 {[%clk 0:00:36]} 52. fxe4
{[%clk 0:00:13]} 52... fxe4 {[%clk 0:00:35]} 53. Ne3 {[%clk 0:00:12.1]} 53...
Nc3 {[%clk 0:00:28.8]} 54. Nc2+ {[%clk 0:00:12.9]} 54... Kc5 {[%clk 0:00:30.2]}
55. Ke3 {[%clk 0:00:14.4]} 55... g5 {[%clk 0:00:28.3]} 56. g3 {[%clk 0:00:15]}
56... Nd1+ {[%clk 0:00:19.7]} 57. Ke2 {[%clk 0:00:13.2]} 57... Nc3+ {[%clk
0:00:15.5]} 58. Ke3 {[%clk 0:00:14.4]} 58... Nd1+ {[%clk 0:00:15.9]} 59. Ke2
{[%clk 0:00:16]} 59... Nb2 {[%clk 0:00:15.2]} 60. Ke3 {[%clk 0:00:12]} 60... Nd3
{[%clk 0:00:10.2]} 61. Nd4 {[%clk 0:00:09.5]} 61... Kd5 {[%clk 0:00:06.9]} 62.
Nf5 {[%clk 0:00:09.9]} 62... Nc5 {[%clk 0:00:05.4]} 63. Ne7+ {[%clk 0:00:09.6]}
63... Ke5 {[%clk 0:00:06.5]} 64. Nc6+ {[%clk 0:00:10.5]} 64... Kd5 {[%clk
0:00:07.5]} 65. Nxb4+ {[%clk 0:00:12.1]} 65... Ke5 {[%clk 0:00:09.4]} 66. Nc6+
{[%clk 0:00:12.8]} 66... Kd6 {[%clk 0:00:10.7]} 67. Nd4 {[%clk 0:00:14.7]} 67...
Kd5 {[%clk 0:00:12.2]} 68. b4 {[%clk 0:00:15.6]} 68... Nd3 {[%clk 0:00:13.1]}
69. b5 {[%clk 0:00:17.5]} 69... Ne5 {[%clk 0:00:14.5]} 70. b6 {[%clk 0:00:16.1]}
70... Nc4+ {[%clk 0:00:15.4]} 71. Ke2 {[%clk 0:00:13.7]} 71... Nxb6 {[%clk
0:00:10.5]} 72. Nf5 {[%clk 0:00:15.2]} 72... Ke5 {[%clk 0:00:11.4]} 73. Ne3
{[%clk 0:00:14.9]} 73... Nd7 {[%clk 0:00:10.7]} 74. Ng4+ {[%clk 0:00:15.5]}
74... Kf5 {[%clk 0:00:11.7]} 75. Ke3 {[%clk 0:00:16.9]} 75... Nc5 {[%clk
0:00:12.1]} 76. Kd4 {[%clk 0:00:15.9]} 76... Ne6+ {[%clk 0:00:13.1]} 77. Ke3
{[%clk 0:00:16]} 77... Ng7 {[%clk 0:00:13.8]} 78. Nh6+ {[%clk 0:00:16.5]} 78...
Ke5 {[%clk 0:00:13.7]} 79. Ng4+ {[%clk 0:00:18.4]} 79... Kd5 {[%clk 0:00:14.6]}
80. Nf2 {[%clk 0:00:19.9]} 80... Nf5+ {[%clk 0:00:15.7]} 81. Kd2 {[%clk
0:00:18.9]} 81... Nxg3 {[%clk 0:00:17.2]} 82. Ng4 {[%clk 0:00:20.2]} 82... Kd4
{[%clk 0:00:16.5]} 83. Ne3 {[%clk 0:00:19.6]} 83... Nh5 {[%clk 0:00:17]} 84.
Nf5+ {[%clk 0:00:18.6]} 84... Ke5 {[%clk 0:00:17.5]} 85. Ne3 {[%clk 0:00:20.5]}
85... Nf4 {[%clk 0:00:18]} 86. Kc3 {[%clk 0:00:18.9]} 86... Nxh3 {[%clk
0:00:18.7]} 87. Ng4+ {[%clk 0:00:20.5]} 87... Kf4 {[%clk 0:00:19.9]} 88. Nf6
{[%clk 0:00:21.4]} 88... Nf2 {[%clk 0:00:18.7]} 89. Kd2 {[%clk 0:00:21.2]} 89...
Kf3 {[%clk 0:00:20]} 90. Nh7 {[%clk 0:00:12.4]} 90... g4 {[%clk 0:00:16.7]} 91.
Ng5+ {[%clk 0:00:14.3]} 91... Kf4 {[%clk 0:00:18.1]} 92. Ne6+ {[%clk 0:00:14.8]}
92... Ke5 {[%clk 0:00:16.1]} 93. Ng5 {[%clk 0:00:08.9]} 93... Kf5 {[%clk
0:00:13.8]} 94. Nf7 {[%clk 0:00:08.2]} 94... g3 {[%clk 0:00:14]} 95. Ke3 {[%clk
0:00:09.6]} 95... Ng4+ {[%clk 0:00:14]} 96. Ke2 {[%clk 0:00:09.7]} 96... Kf4
{[%clk 0:00:14.7]} 97. Kf1 {[%clk 0:00:06.9]} 97... Ne3+ {[%clk 0:00:15.7]} 98.
Kg1 {[%clk 0:00:05.6]} 98... Nf5 {[%clk 0:00:14.5]} 99. Nh8 {[%clk 0:00:04.2]}
99... Ne7 {[%clk 0:00:12]} 100. Nf7 {[%clk 0:00:04.9]} 100... e3 {[%clk
0:00:13.3]} 101. Nd8 {[%clk 0:00:03.6]} 101... Kf3 {[%clk 0:00:13.6]} 102. Ne6
{[%clk 0:00:05.5]} 102... e2 {[%clk 0:00:14.2]} 103. Nd4+ {[%clk 0:00:06.9]}
103... Ke3 {[%clk 0:00:15.3]} 104. Nxe2 {[%clk 0:00:08.4]} 104... Kxe2 {[%clk
0:00:15.9]} 105. Kg2 {[%clk 0:00:10.3]} 105... Nf5 {[%clk 0:00:17.1]} 106. Kh3
{[%clk 0:00:11.3]} 106... Kf2 {[%clk 0:00:12.9]} 107. Kg4 {[%clk 0:00:12.1]}
107... g2 {[%clk 0:00:14]} 108. Kxf5 {[%clk 0:00:14]} 108... g1=Q {[%clk
0:00:15.5]} 0-1

[Event "*** MasterClass Titled Tuesday Blitz"]
[Site "Chess.com"]
[Date "2017.11.07"]
[Round "3"]
[White "Jadeit90"]
[Black "josiwales"]
[Result "1-0"]
[WhiteElo "2299"]
[BlackElo "2359"]
[TimeControl "180+2"]
[EndTime "14:37:17 PST"]
[Termination "Jadeit90 won by resignation"]

1. g3 {[%clk 0:03:01]} 1... d5 {[%clk 0:03:00.5]} 2. Bg2 {[%clk 0:02:56.8]} 2...
c6 {[%clk 0:03:01.8]} 3. c4 {[%clk 0:02:43.7]} 3... Nf6 {[%clk 0:03:03.7]} 4.
cxd5 {[%clk 0:02:44.8]} 4... cxd5 {[%clk 0:03:04.3]} 5. Nf3 {[%clk 0:02:46.7]}
5... Nc6 {[%clk 0:03:04.8]} 6. O-O {[%clk 0:02:48.6]} 6... Bg4 {[%clk
0:03:05.2]} 7. d3 {[%clk 0:02:49.9]} 7... Bxf3 {[%clk 0:03:03.8]} 8. Bxf3 {[%clk
0:02:50.8]} 8... e6 {[%clk 0:03:05.7]} 9. Nc3 {[%clk 0:02:52.3]} 9... Bc5 {[%clk
0:03:03.3]} 10. e4 {[%clk 0:02:53.4]} 10... O-O {[%clk 0:02:59.7]} 11. exd5
{[%clk 0:02:53.8]} 11... exd5 {[%clk 0:03:01.6]} 12. Bg5 {[%clk 0:02:54.6]}
12... Ne5 {[%clk 0:02:32.3]} 13. Bg2 {[%clk 0:02:53.8]} 13... Bd4 {[%clk
0:02:26.5]} 14. Bxf6 {[%clk 0:02:53.2]} 14... Qxf6 {[%clk 0:02:25.4]} 15. Nxd5
{[%clk 0:02:54.5]} 15... Qg6 {[%clk 0:02:26.1]} 16. Ne7+ {[%clk 0:02:54]} 1-0

[Event "*** MasterClass Titled Tuesday Blitz"]
[Site "Chess.com"]
[Date "2017.11.07"]
[Round "3"]
[White "Genghis_K"]
[Black "Buffy7"]
[Result "1-0"]
[WhiteElo "2662"]
[BlackElo "2482"]
[TimeControl "180+2"]
[EndTime "14:38:15 PST"]
[Termination "Genghis_K won by resignation"]

1. e4 {[%clk 0:03:01]} 1... c5 {[%clk 0:03:00.3]} 2. Nf3 {[%clk 0:03:02.3]} 2...
d6 {[%clk 0:03:00.9]} 3. d4 {[%clk 0:03:02.9]} 3... cxd4 {[%clk 0:03:02.8]} 4.
Nxd4 {[%clk 0:03:04.3]} 4... Nf6 {[%clk 0:03:04.3]} 5. Nc3 {[%clk 0:03:05.6]}
5... Nc6 {[%clk 0:03:05.8]} 6. Bg5 {[%clk 0:03:02.8]} 6... e6 {[%clk 0:03:07.1]}
7. Qd2 {[%clk 0:03:04.2]} 7... a6 {[%clk 0:03:08.3]} 8. O-O-O {[%clk 0:03:01.6]}
8... Bd7 {[%clk 0:03:09.8]} 9. f4 {[%clk 0:02:57.8]} 9... b5 {[%clk 0:03:10.9]}
10. Bxf6 {[%clk 0:02:56.1]} 10... gxf6 {[%clk 0:03:12.8]} 11. Kb1 {[%clk
0:02:56.1]} 11... Qb6 {[%clk 0:03:12.5]} 12. Nxc6 {[%clk 0:02:48.3]} 12... Bxc6
{[%clk 0:03:14.4]} 13. f5 {[%clk 0:02:49.1]} 13... h5 {[%clk 0:03:09.2]} 14.
fxe6 {[%clk 0:02:41.8]} 14... fxe6 {[%clk 0:03:11.1]} 15. Bd3 {[%clk 0:02:43.1]}
15... Bh6 {[%clk 0:03:00]} 16. Qe1 {[%clk 0:02:41]} 16... Bf4 {[%clk 0:03:00.7]}
17. Nd5 {[%clk 0:02:35.3]} 17... Bxd5 {[%clk 0:02:40.1]} 18. exd5 {[%clk
0:02:35.7]} 18... e5 {[%clk 0:02:41.7]} 19. Rf1 {[%clk 0:02:24.7]} 19... Ke7
{[%clk 0:02:14.2]} 20. Rxf4 {[%clk 0:02:23.5]} 1-0

[Event "*** MasterClass Titled Tuesday Blitz"]
[Site "Chess.com"]
[Date "2017.11.07"]
[Round "3"]
[White "Mbneu"]
[Black "Ar4uha"]
[Result "1-0"]
[WhiteElo "2318"]
[BlackElo "2424"]
[TimeControl "180+2"]
[EndTime "14:39:18 PST"]
[Termination "Mbneu won by resignation"]

1. d4 {[%clk 0:03:01.9]} 1... Nf6 {[%clk 0:02:56.5]} 2. c4 {[%clk 0:03:02.2]}
2... e6 {[%clk 0:02:57.7]} 3. Nc3 {[%clk 0:03:02.7]} 3... Bb4 {[%clk 0:02:58.7]}
4. Bg5 {[%clk 0:03:04.2]} 4... h6 {[%clk 0:02:59.1]} 5. Bh4 {[%clk 0:03:04.5]}
5... b6 {[%clk 0:03:00.7]} 6. e3 {[%clk 0:03:04]} 6... g5 {[%clk 0:03:01.7]} 7.
Bg3 {[%clk 0:03:04.3]} 7... Ne4 {[%clk 0:03:03.2]} 8. Rc1 {[%clk 0:02:57.8]}
8... Bb7 {[%clk 0:03:03.2]} 9. Ne2 {[%clk 0:02:55.9]} 9... d6 {[%clk 0:03:03.6]}
10. a3 {[%clk 0:02:56.4]} 10... Bxc3+ {[%clk 0:03:03.2]} 11. Nxc3 {[%clk
0:02:58]} 11... Nxg3 {[%clk 0:03:03.8]} 12. hxg3 {[%clk 0:02:57.4]} 12... Nd7
{[%clk 0:03:05.3]} 13. f3 {[%clk 0:02:43.5]} 13... c5 {[%clk 0:02:58.4]} 14. d5
{[%clk 0:02:40.4]} 14... e5 {[%clk 0:02:56.2]} 15. Bd3 {[%clk 0:02:38.9]} 15...
a6 {[%clk 0:02:56.9]} 16. Bf5 {[%clk 0:02:36.9]} 16... Qf6 {[%clk 0:02:57.5]}
17. g4 {[%clk 0:02:36.4]} 17... Nf8 {[%clk 0:02:57.4]} 18. Ne4 {[%clk
0:02:35.7]} 18... Qe7 {[%clk 0:02:55.9]} 19. Qa4+ {[%clk 0:02:34.6]} 19... Kd8
{[%clk 0:02:56.6]} 20. b4 {[%clk 0:02:33.9]} 20... Bc8 {[%clk 0:02:54.6]} 21.
bxc5 {[%clk 0:02:27.8]} 21... bxc5 {[%clk 0:02:55.8]} 22. Rb1 {[%clk 0:02:16]}
22... Bxf5 {[%clk 0:02:51.9]} 23. gxf5 {[%clk 0:02:17.4]} 23... Qc7 {[%clk
0:02:53.3]} 24. Kf2 {[%clk 0:01:44.3]} 24... Nh7 {[%clk 0:02:45.4]} 25. Qc6
{[%clk 0:01:34.5]} 25... Qxc6 {[%clk 0:02:46.2]} 26. dxc6 {[%clk 0:01:35.2]}
26... Kc7 {[%clk 0:02:48.1]} 27. Rb7+ {[%clk 0:01:34.4]} 27... Kxc6 {[%clk
0:02:48.4]} 28. Rhb1 {[%clk 0:01:34.3]} 1-0

[Event "*** MasterClass Titled Tuesday Blitz"]
[Site "Chess.com"]
[Date "2017.11.07"]
[Round "3"]
[White "Rodalquilar"]
[Black "yosephtaher"]
[Result "1-0"]
[WhiteElo "2511"]
[BlackElo "2517"]
[TimeControl "180+2"]
[EndTime "14:39:47 PST"]
[Termination "Rodalquilar won by resignation"]

1. e4 {[%clk 0:03:01.9]} 1... c5 {[%clk 0:03:00.1]} 2. Nc3 {[%clk 0:03:03.2]}
2... g6 {[%clk 0:03:01.3]} 3. d4 {[%clk 0:03:03.9]} 3... cxd4 {[%clk 0:03:00.2]}
4. Qxd4 {[%clk 0:03:05.8]} 4... Nf6 {[%clk 0:03:00.8]} 5. Bb5 {[%clk 0:03:06.1]}
5... a6 {[%clk 0:02:53.1]} 6. e5 {[%clk 0:03:06.7]} 6... axb5 {[%clk 0:02:42.5]}
7. exf6 {[%clk 0:03:08]} 7... Nc6 {[%clk 0:02:43.4]} 8. fxe7 {[%clk 0:02:51.3]}
8... Qxe7+ {[%clk 0:02:45.3]} 9. Qe4 {[%clk 0:02:42.6]} 9... Qxe4+ {[%clk
0:02:29.7]} 10. Nxe4 {[%clk 0:02:44.5]} 10... f5 {[%clk 0:02:30.8]} 11. Nc3
{[%clk 0:02:34]} 11... Nd4 {[%clk 0:02:30.3]} 12. Kd1 {[%clk 0:02:33.1]} 12...
b4 {[%clk 0:02:31.1]} 13. Nd5 {[%clk 0:02:32.4]} 13... Ra5 {[%clk 0:02:21.6]}
14. Nb6 {[%clk 0:02:23.6]} 14... b3 {[%clk 0:01:54.5]} 15. cxb3 {[%clk
0:02:12.9]} 15... Nxb3 {[%clk 0:01:53.6]} 16. Rb1 {[%clk 0:01:59.6]} 16... Rxa2
{[%clk 0:01:53.2]} 17. Nxc8 {[%clk 0:01:55.4]} 17... Bc5 {[%clk 0:01:53.4]} 18.
Kc2 {[%clk 0:01:54.9]} 18... Nd4+ {[%clk 0:01:50.4]} 19. Kd3 {[%clk 0:01:56.1]}
19... Nb5 {[%clk 0:01:23.2]} 20. Kc4 {[%clk 0:01:48]} 1-0